[Event "Chessity Nationale Pupillendag 2019 - Groep H"]
[Site "Meppel, Netherlands"]
[Date "2019.06.29"]
[Round "1.1"]
[White "Katpatal, Nirbhay alias Ak"]
[Black "Drenthen, Abel"]
[Result "1-0"]
[TimeControl "15 min + 10 sec"]
[WhiteElo "673"]
[BlackElo "262"]

1. e4 {[%clk 00:15:18]} {[%emt 00:00:01]} e5 {[%clk 00:15:18]} {[%emt
00:00:02]} 2. Nf3 {[%clk 00:15:26]} {[%emt 00:00:02]} Nc6 {[%clk 00:15:26]}
{[%emt 00:00:02]} 3. Nc3 {[%clk 00:15:35]} {[%emt 00:00:02]} Bc5 {[%clk
00:15:34]} {[%emt 00:00:02]} 4. Bc4 {[%clk 00:15:42]} {[%emt 00:00:01]} Nf6
{[%clk 00:15:42]} {[%emt 00:00:02]} 5. O-O {[%clk 00:15:50]} {[%emt 00:00:03]}
d6 {[%clk 00:15:51]} {[%emt 00:00:02]} 6. h3 {[%clk 00:15:58]} {[%emt
00:00:01]} Bd7 {[%clk 00:15:54]} {[%emt 00:00:07]} 7. d3 {[%clk 00:16:06]}
{[%emt 00:00:02]} O-O {[%clk 00:15:57]} {[%emt 00:00:08]} 8. Bg5 {[%clk
00:16:13]} {[%emt 00:00:02]} Re8 {[%clk 00:16:03]} {[%emt 00:00:04]} 9. Nd5
{[%clk 00:16:22]} {[%emt 00:00:02]} Be6 {[%clk 00:16:00]} {[%emt 00:00:12]} 10.
Nxf6+ {[%clk 00:16:28]} {[%emt 00:00:04]} gxf6 {[%clk 00:16:08]} {[%emt
00:00:02]} 11. Bh6 {[%clk 00:16:38]} Bxc4 {[%clk 00:16:11]} {[%emt 00:00:07]}
12. dxc4 {[%clk 00:16:47]} {[%emt 00:00:02]} Qd7 {[%clk 00:16:15]} {[%emt
00:00:04]} 13. Nh4 {[%clk 00:16:50]} {[%emt 00:00:06]} Rad8 {[%clk 00:16:21]}
{[%emt 00:00:05]} 14. Nf5 {[%clk 00:16:58]} {[%emt 00:00:02]} Bd4 {[%clk
00:16:13]} {[%emt 00:00:17]} 15. Qg4+ {[%clk 00:17:05]} {[%emt 00:00:03]} Kh8
{[%emt 00:00:12]} 16. Qg7# {[%emt 00:00:09]} 1-0

[Event "Chessity Nationale Pupillendag 2019 - Groep H"]
[Site "Meppel, Netherlands"]
[Date "2019.06.29"]
[Round "2.1"]
[White "Tetova, Amir"]
[Black "Katpatal, Nirbhay alias Ak"]
[Result "0-1"]
[TimeControl "15 min + 10 sec"]
[WhiteElo "385"]
[BlackElo "673"]

1. e4 {[%clk 00:15:18]} {[%emt 00:00:01]} c5 {[%clk 00:15:20]} 2. Nf3 {[%clk
00:15:27]} {[%emt 00:00:02]} Nc6 {[%clk 00:15:29]} 3. Nc3 {[%clk 00:15:27]}
{[%emt 00:00:10]} d6 {[%clk 00:15:38]} 4. Bb5 {[%clk 00:15:29]} {[%emt
00:00:08]} Bd7 {[%clk 00:15:47]} {[%emt 00:00:01]} 5. d3 {[%clk 00:15:28]}
{[%emt 00:00:10]} Nf6 {[%clk 00:15:54]} {[%emt 00:00:02]} 6. Bg5 {[%clk
00:15:33]} {[%emt 00:00:06]} h6 {[%clk 00:15:53]} {[%emt 00:00:10]} 7. Bxf6
{[%clk 00:15:39]} {[%emt 00:00:05]} exf6 {[%clk 00:16:01]} {[%emt 00:00:02]} 8.
O-O {[%clk 00:15:36]} {[%emt 00:00:13]} Nd4 {[%clk 00:16:07]} {[%emt 00:00:03]}
9. Nxd4 {[%clk 00:15:37]} {[%emt 00:00:09]} cxd4 {[%clk 00:16:15]} {[%emt
00:00:02]} 10. Nd5 {[%clk 00:15:37]} {[%emt 00:00:11]} Bxb5 {[%clk 00:16:21]}
{[%emt 00:00:04]} 11. Qh5 {[%clk 00:15:28]} {[%emt 00:00:19]} Bd7 {[%clk
00:16:22]} {[%emt 00:00:10]} 12. Rae1 {[%clk 00:15:26]} {[%emt 00:00:11]} Be7
{[%clk 00:16:30]} {[%emt 00:00:02]} 13. e5 {[%clk 00:15:07]} {[%emt 00:00:29]}
fxe5 {[%clk 00:16:19]} {[%emt 00:00:21]} 14. Qe2 {[%clk 00:14:10]} {[%emt
00:01:05]} O-O {[%clk 00:16:26]} {[%emt 00:00:05]} 15. Qe4 {[%clk 00:14:03]}
{[%emt 00:00:15]} Bc6 {[%clk 00:16:31]} {[%emt 00:00:06]} 16. Qg4 {[%clk
00:13:30]} {[%emt 00:00:36]} Bxd5 {[%clk 00:16:37]} {[%emt 00:00:13]} 17. Re2
{[%clk 00:13:26]} {[%emt 00:00:09]} Qc8 {[%clk 00:16:46]} 18. Qg3 {[%clk
00:13:11]} {[%emt 00:00:28]} Qe6 {[%clk 00:16:52]} {[%emt 00:00:05]} 19. c3
{[%clk 00:12:32]} {[%emt 00:00:51]} dxc3 {[%clk 00:16:52]} {[%emt 00:00:11]} 20.
bxc3 {[%clk 00:12:31]} {[%emt 00:00:10]} Qg6 {[%clk 00:16:59]} {[%emt
00:00:02]} 21. Qxg6 {[%clk 00:12:16]} {[%emt 00:00:26]} fxg6 {[%clk 00:17:07]}
{[%emt 00:00:02]} 22. d4 {[%clk 00:12:17]} {[%emt 00:00:09]} Bf6 {[%clk
00:17:14]} {[%emt 00:00:03]} 23. dxe5 {[%clk 00:12:17]} {[%emt 00:00:10]} dxe5
{[%clk 00:17:23]} 24. Rc1 {[%clk 00:12:20]} {[%emt 00:00:08]} Bg5 {[%clk
00:17:29]} {[%emt 00:00:03]} 25. Rcc2 {[%clk 00:12:26]} {[%emt 00:00:04]} Rad8
{[%clk 00:17:36]} {[%emt 00:00:03]} 26. c4 {[%clk 00:12:25]} {[%emt 00:00:12]}
Bxc4 {[%clk 00:17:45]} {[%emt 00:00:01]} 27. h3 {[%clk 00:12:23]} Bxe2 {[%clk
00:17:51]} {[%emt 00:00:15]} 28. Rxe2 {[%clk 00:12:31]} Rd1+ {[%clk 00:17:58]}
{[%emt 00:00:06]} 29. Kh2 {[%clk 00:12:37]} Rf1 {[%clk 00:18:00]} {[%emt
00:00:11]} 30. Rxe5 {[%clk 00:12:40]} {[%emt 00:00:18]} Bf4+ {[%clk 00:18:11]}
31. g3 {[%clk 00:12:40]} Rxf2+ {[%clk 00:18:11]} {[%emt 00:00:08]} 32. Kg1
{[%clk 00:12:49]} Bxe5 {[%clk 00:18:17]} {[%emt 00:00:06]} 33. Kh1 {[%clk
00:12:46]} Rf1+ {[%clk 00:18:26]} 34. Kg2 R1f2+ {[%clk 00:18:17]} 35. Kg1
{[%clk 00:12:46]} Rf1+ {[%clk 00:18:26]} 36. Kg2 R1f2+ {[%clk 00:18:17]} 37.
Kg1 {[%clk 00:12:46]} Rf1+ {[%clk 00:18:26]} 38. Kg2 {[%clk 00:12:46]} R8f2#
{[%clk 00:18:17]} 0-1

[Event "Chessity Nationale Pupillendag 2019 - Groep H"]
[Site "Meppel, Netherlands"]
[Date "2019.06.29"]
[Round "2.2"]
[White "Thijssen, Freek"]
[Black "Bronkhorst, Boaz"]
[Result "0-1"]
[TimeControl "15 min + 10 sec"]
[WhiteElo "658"]
[BlackElo "378"]

1. d4 {[%emt 00:00:02]} d5 {[%emt 00:00:01]} 2. f4 {[%emt 00:00:06]} Nc6 {[%emt
00:00:02]} 3. Nc3 {[%emt 00:00:03]} Bf5 {[%emt 00:00:03]} 4. h3 {[%emt
00:00:07]} Nb4 {[%emt 00:00:04]} 5. Rb1 {[%emt 00:00:06]} Nxc2+ {[%emt
00:00:04]} 6. Kf2 {[%emt 00:00:03]} e6 {[%emt 00:00:21]} 7. g4 {[%emt
00:00:05]} Qh4+ {[%emt 00:00:04]} 8. Kg2 {[%clk 00:13:44]} {[%emt 00:00:03]}
Ne1+ {[%clk 00:15:14]} {[%emt 00:00:26]} 9. Kh2 {[%emt 00:00:12]} Qf2+ {[%emt
00:00:04]} 10. Bg2 {[%emt 00:00:04]} Qxg2# {[%emt 00:00:01]} 0-1

[Event "Chessity Nationale Pupillendag 2019 - Groep H"]
[Site "Meppel, Netherlands"]
[Date "2019.06.29"]
[Round "3.1"]
[White "Katpatal, Nirbhay alias Ak"]
[Black "Leenen, Boyd"]
[Result "0-1"]
[TimeControl "15 min + 10 sec"]
[WhiteElo "673"]
[BlackElo "495"]

1. e4 e5 {[%clk 00:15:18]} {[%emt 00:00:01]} 2. Nf3 {[%clk 00:15:19]} {[%emt
00:00:01]} d6 {[%clk 00:15:27]} {[%emt 00:00:02]} 3. Nc3 {[%clk 00:15:27]}
{[%emt 00:00:01]} Nf6 {[%clk 00:15:35]} {[%emt 00:00:02]} 4. Bc4 {[%clk
00:15:36]} {[%emt 00:00:01]} h6 {[%clk 00:15:43]} {[%emt 00:00:02]} 5. h3
{[%clk 00:15:42]} Nc6 {[%clk 00:15:51]} {[%emt 00:00:06]} 6. d3 {[%clk
00:15:50]} Be6 {[%clk 00:15:59]} {[%emt 00:00:03]} 7. Bd5 {[%clk 00:15:55]}
Bxd5 {[%clk 00:16:06]} {[%emt 00:00:08]} 8. exd5 {[%clk 00:16:03]} Ne7 {[%emt
00:00:06]} 9. O-O Nexd5 {[%clk 00:16:12]} 10. Nxd5 {[%clk 00:15:56]} Nxd5
{[%clk 00:16:20]} {[%emt 00:00:19]} 11. Re1 {[%clk 00:16:04]} Nf6 {[%emt
00:00:05]} 12. d4 Qd7 {[%clk 00:16:27]} 13. dxe5 {[%clk 00:16:12]} Qd8 {[%clk
00:16:28]} {[%emt 00:00:11]} 0-1

[Event "Chessity Nationale Pupillendag 2019 - Groep H"]
[Site "Meppel, Netherlands"]
[Date "2019.06.29"]
[Round "3.2"]
[White "Thijssen, Freek"]
[Black "Groenewegen, Thom"]
[Result "1-0"]
[TimeControl "15 min + 10 sec"]
[WhiteElo "658"]
[BlackElo "408"]

1. e4 {[%clk 00:15:19]} e5 {[%clk 00:15:19]} {[%emt 00:00:01]} 2. Nf3 {[%clk
00:15:28]} {[%emt 00:00:01]} Nc6 {[%clk 00:15:27]} {[%emt 00:00:03]} 3. Bc4
{[%clk 00:15:36]} {[%emt 00:00:01]} Nf6 {[%clk 00:15:35]} {[%emt 00:00:02]} 4.
Ng5 {[%clk 00:15:45]} {[%emt 00:00:02]} Qe7 {[%clk 00:15:34]} {[%emt 00:00:11]}
5. Nxf7 {[%clk 00:15:51]} {[%emt 00:00:03]} Nd4 {[%clk 00:15:40]} {[%emt
00:00:04]} 6. Nxh8 {[%clk 00:15:51]} {[%emt 00:00:09]} Nxe4 {[%clk 00:15:37]}
{[%emt 00:00:14]} 7. Qh5+ {[%clk 00:15:42]} {[%emt 00:00:19]} g6 {[%clk
00:15:43]} {[%emt 00:00:05]} 8. Qd1 {[%clk 00:15:33]} {[%emt 00:00:14]} Qh4
{[%clk 00:15:50]} {[%emt 00:00:08]} 9. g3 {[%clk 00:15:21]} {[%emt 00:00:22]}
Qf6 {[%clk 00:15:58]} {[%emt 00:00:02]} 10. c3 {[%clk 00:15:25]} {[%emt
00:00:07]} Nxf2 {[%clk 00:16:03]} 11. Bf7+ {[%clk 00:15:15]} {[%emt 00:00:24]}
Qxf7 {[%clk 00:16:06]} 12. Nxf7 {[%clk 00:15:22]} {[%emt 00:00:10]} Kxf7 13.
Kxf2 d5 {[%clk 00:16:12]} {[%emt 00:00:01]} 14. cxd4 {[%clk 00:15:36]} {[%emt
00:00:03]} exd4 {[%clk 00:16:20]} {[%emt 00:00:02]} 15. Qb3 {[%clk 00:15:41]}
{[%emt 00:00:06]} Bf5 {[%clk 00:16:16]} {[%emt 00:00:13]} 16. Qxd5+ {[%clk
00:15:48]} {[%emt 00:00:02]} Be6 {[%clk 00:16:23]} {[%emt 00:00:04]} 17. Qxb7
{[%clk 00:15:55]} {[%emt 00:00:03]} 1-0

[Event "Chessity Nationale Pupillendag 2019 - Groep H"]
[Site "Meppel, Netherlands"]
[Date "2019.06.29"]
[Round "4.1"]
[White "Thijssen, Freek"]
[Black "Rudolph, Simon"]
[Result "0-1"]
[TimeControl "15 min + 10 sec"]
[WhiteElo "658"]
[BlackElo "439"]

1. e4 {[%clk 00:15:19]} Nf6 {[%clk 00:15:19]} {[%emt 00:00:02]} 2. Nc3 {[%clk
00:15:28]} {[%emt 00:00:01]} d5 {[%clk 00:15:27]} {[%emt 00:00:02]} 3. e5
{[%clk 00:15:35]} {[%emt 00:00:03]} Nfd7 {[%clk 00:15:35]} {[%emt 00:00:02]} 4.
Nf3 {[%clk 00:15:43]} {[%emt 00:00:02]} e6 {[%clk 00:15:40]} {[%emt 00:00:05]}
5. d4 {[%clk 00:15:52]} {[%emt 00:00:01]} g6 {[%clk 00:15:47]} {[%emt
00:00:03]} 6. Bg5 {[%clk 00:15:57]} {[%emt 00:00:04]} Be7 {[%clk 00:15:43]}
{[%emt 00:00:14]} 7. Bxe7 {[%clk 00:15:52]} {[%emt 00:00:15]} Qxe7 {[%clk
00:15:50]} {[%emt 00:00:02]} 8. Bb5 {[%clk 00:15:54]} {[%emt 00:00:07]} c6
{[%clk 00:15:57]} {[%emt 00:00:05]} 9. Bd3 {[%clk 00:16:02]} {[%emt 00:00:02]}
O-O {[%clk 00:16:03]} {[%emt 00:00:04]} 10. O-O {[%clk 00:16:09]} {[%emt
00:00:04]} c5 {[%clk 00:16:02]} {[%emt 00:00:09]} 11. Re1 {[%clk 00:16:04]}
{[%emt 00:00:15]} cxd4 {[%clk 00:15:59]} {[%emt 00:00:13]} 12. Nxd4 {[%clk
00:16:11]} {[%emt 00:00:03]} Nc6 {[%clk 00:15:58]} {[%emt 00:00:12]} 13. Nxc6
{[%clk 00:16:12]} {[%emt 00:00:09]} bxc6 {[%clk 00:16:04]} {[%emt 00:00:03]} 14.
Re3 {[%clk 00:16:13]} {[%emt 00:00:09]} d4 {[%clk 00:16:06]} {[%emt 00:00:08]}
15. Nd5 {[%clk 00:16:11]} {[%emt 00:00:12]} cxd5 {[%clk 00:16:03]} {[%emt
00:00:13]} 16. Rh3 {[%clk 00:16:18]} {[%emt 00:00:03]} Nxe5 {[%clk 00:16:05]}
{[%emt 00:00:08]} 17. Qd2 {[%clk 00:16:20]} {[%emt 00:00:07]} Nxd3 {[%emt
00:00:05]} 18. cxd3 {[%emt 00:00:02]} e5 {[%clk 00:16:07]} {[%emt 00:00:02]} 19.
Qh6 {[%clk 00:16:28]} {[%emt 00:00:02]} Bxh3 {[%clk 00:16:14]} {[%emt
00:00:03]} 20. Qxh3 {[%clk 00:16:34]} {[%emt 00:00:05]} Rac8 {[%clk 00:16:06]}
{[%emt 00:00:16]} 21. Qf3 {[%clk 00:16:27]} {[%emt 00:00:18]} Qc5 {[%clk
00:16:06]} {[%emt 00:00:11]} 22. h3 {[%clk 00:16:29]} {[%emt 00:00:08]} e4
{[%clk 00:16:09]} {[%emt 00:00:06]} 23. dxe4 {[%clk 00:16:34]} {[%emt
00:00:06]} dxe4 {[%clk 00:16:17]} {[%emt 00:00:02]} 24. Qxe4 {[%clk 00:16:42]}
{[%emt 00:00:02]} Rce8 {[%clk 00:16:20]} {[%emt 00:00:07]} 25. Qd3 {[%clk
00:16:42]} {[%emt 00:00:08]} Re7 {[%clk 00:16:17]} {[%emt 00:00:14]} 26. Rd1
{[%clk 00:16:46]} {[%emt 00:00:06]} Rd8 {[%clk 00:16:20]} {[%emt 00:00:07]} 27.
a3 {[%clk 00:16:43]} {[%emt 00:00:14]} Rc7 {[%clk 00:16:08]} {[%emt 00:00:21]}
28. b4 {[%clk 00:16:50]} {[%emt 00:00:04]} Qc2 {[%clk 00:16:16]} {[%emt
00:00:02]} 29. Qf3 {[%clk 00:16:26]} {[%emt 00:00:32]} Rc3 {[%clk 00:16:21]}
{[%emt 00:00:07]} 30. Qg4 {[%clk 00:16:25]} {[%emt 00:00:09]} f5 {[%clk
00:16:24]} {[%emt 00:00:08]} 31. Qxd4 {[%emt 00:00:26]} Rxd4 {[%emt 00:00:02]}
32. Rxd4 {[%clk 00:16:18]} {[%emt 00:00:01]} Qc1+ {[%emt 00:00:05]} 33. Kh2
Rxa3 {[%clk 00:16:08]} {[%emt 00:00:20]} 34. Rd8+ {[%clk 00:16:24]} {[%emt
00:00:03]} Kg7 {[%clk 00:16:16]} {[%emt 00:00:02]} 35. Rd7+ {[%clk 00:16:33]}
{[%emt 00:00:03]} Kh6 {[%clk 00:16:24]} {[%emt 00:00:01]} 36. f3 {[%clk
00:16:18]} {[%emt 00:00:25]} Ra2 {[%clk 00:16:24]} {[%emt 00:00:09]} 37. h4
{[%clk 00:16:12]} {[%emt 00:00:16]} Qb2 {[%clk 00:16:29]} {[%emt 00:00:05]} 38.
Kg3 {[%clk 00:16:07]} {[%emt 00:00:15]} Qxg2+ {[%emt 00:00:04]} 39. Kf4 Rf2
{[%clk 00:16:22]} {[%emt 00:00:13]} 40. h5 {[%clk 00:15:55]} {[%emt 00:00:23]}
Qxf3+ {[%emt 00:00:06]} 41. Ke5 Qxh5 {[%clk 00:16:22]} {[%emt 00:00:04]} 42.
Kf6 {[%clk 00:15:53]} {[%emt 00:00:13]} Qg5+ {[%clk 00:16:24]} {[%emt
00:00:06]} 43. Kf7 {[%clk 00:16:00]} {[%emt 00:00:04]} Qh5 {[%clk 00:16:08]}
{[%emt 00:00:26]} 44. Kg8 {[%clk 00:16:06]} {[%emt 00:00:04]} g5 {[%clk
00:16:15]} {[%emt 00:00:03]} 45. Rxh7+ {[%clk 00:16:10]} {[%emt 00:00:06]} Kg6
{[%clk 00:16:22]} {[%emt 00:00:02]} 46. Rxh5 {[%clk 00:16:12]} {[%emt
00:00:08]} Kxh5 {[%clk 00:16:31]} {[%emt 00:00:01]} 47. Kf7 {[%clk 00:16:20]}
{[%emt 00:00:02]} Rb2 {[%clk 00:16:37]} {[%emt 00:00:05]} 48. Kf6 {[%clk
00:16:27]} {[%emt 00:00:02]} Rxb4 {[%emt 00:00:04]} 49. Kxf5 a5 {[%clk
00:16:42]} {[%emt 00:00:02]} 50. Ke5 {[%clk 00:16:34]} {[%emt 00:00:02]} a4
{[%clk 00:16:51]} {[%emt 00:00:02]} 51. Kd5 {[%clk 00:16:44]} a3 {[%clk
00:17:00]} {[%emt 00:00:01]} 52. Kc5 {[%clk 00:16:53]} Rb8 {[%clk 00:17:08]}
{[%emt 00:00:01]} 53. Kc4 {[%clk 00:17:00]} {[%emt 00:00:02]} a2 {[%clk
00:17:17]} {[%emt 00:00:02]} 54. Kc3 {[%clk 00:17:08]} {[%emt 00:00:01]} a1=Q+
{[%emt 00:00:03]} 55. Kc4 {[%emt 00:00:02]} Rd8 {[%clk 00:17:20]} {[%emt
00:00:02]} 56. Kc5 {[%clk 00:17:14]} {[%emt 00:00:04]} Qc1+ {[%clk 00:17:29]}
{[%emt 00:00:02]} 57. Kb6 {[%clk 00:17:23]} {[%emt 00:00:02]} Rb8+ {[%clk
00:17:38]} {[%emt 00:00:01]} 58. Ka7 {[%clk 00:17:31]} {[%emt 00:00:01]} Rb2
{[%clk 00:17:46]} {[%emt 00:00:01]} 59. Ka6 {[%clk 00:17:39]} {[%emt 00:00:03]}
Qa1# {[%clk 00:17:55]} {[%emt 00:00:01]} 0-1